[Event "GER-ch Youth U14 2019"]
[Site "Willingen"]
[Date "2019.06.12"]
[Round "5.11"]
[White "Tham, Nam"]
[Black "Laux, Dominik"]
[Result "1/2-1/2"]
[ECO "B11"]
[WhiteElo "1993"]
[BlackElo "2061"]
[Annotator "NA"]
[PlyCount "64"]
[EventDate "2019.06.07"]
[EventType "swiss"]
[EventRounds "9"]
[EventCountry "GER"]
[SourceTitle "playchess.com"]
[Source "ChessBase"]
[SourceQuality "1"]
[TimeControl "40/5400+30:1800+30"]

1. e4 {[%emt 0:00:00]} c6 {[%emt 0:00:00]} 2. Nc3 {[%emt 0:00:00]} d5 {[%emt 0:00:02]} 3. Nf3 {[%emt 0:00:00]} Bg4 {[%emt 0:00:07]} 4. h3 {[%emt 0:00:00]} Bxf3 {[%emt 0:00:07]} 5. Qxf3 {[%emt 0:00:00]} e6 {[%emt 0:00:11]} 6. d4 {[%emt 0:00:21]} dxe4 {[%emt 0:02:04]} 7. Nxe4 {[%emt 0:00:06]} Qxd4 {[%emt 0:03:55]} 8. c3 {[%emt 0:00:21]} Qb6 {[%emt 0:03:43]} 9. Bg5 {[%emt 0:07:15]} Nd7 {[%emt 0:10:28]} 10. Rd1 {[%emt 0:00:25]} f6 {[%emt 0:04:30]} 11. Bh4 {[%emt 0:02:40]} O-O-O {[%emt 0:04:18]} 12. Be2 {[%emt 0:02:17]} Be7 {[%emt 0:08:47]} 13. O-O {[%emt 0:01:35]} Nh6 {[%emt 0:02:40]} 14. Bg3 {[%emt 0:01:19]} e5 {[%emt 0:02:12]} 15. Nd2 {[%emt 0:02:43]} Nc5 {[%emt 0:04:16]} 16. Nc4 {[%emt 0:05:15]} Qc7 {[%emt 0:02:09]} 17. Rb1 {[%emt 0:02:12]} Ne6 {[%emt 0:03:46]} 18. b4 {[%emt 0:01:31]} Kb8 {[%emt 0:05:39]} 19. a4 {[%emt 0:06:27]} Ng5 {[%emt 0:02:02]} 20. Qe3 {[%emt 0:00:05]} Nf5 {[%emt 0:00:13]} 21. Qc1 {[%emt 0:00:03]} Ne4 {[%emt 0:01:12]} 22. Kh2 {[%emt 0:00:50]} Nfd6 {[%emt 0:03:32]} 23. Rb2 {[%emt 0:10:53]} Nxc4 {[%emt 0:02:33]} 24. Bxc4 {[%emt 0:00:16]} f5 {[%emt 0:05:08]} 25. Re2 {[%emt 0:21:35]} Bf6 {[%emt 0:05:41]} 26. Rxe4 {[%emt 0:03:00]} fxe4 {[%emt 0:00:07]} 27. Qe3 {[%emt 0:00:08]} Rhe8 {[%emt 0:04:21]} 28. Qxe4 {[%emt 0:00:48]} h6 {[%emt 0:01:27]} 29. Re1 {[%emt 0:01:53]} Ka8 {[%emt 0:01:15]} 30. f3 {[%emt 0:00:35]} c5 {[%emt 0:06:14]} 31. b5 {[%emt 0:02:50]} Qd6 {[%emt 0:02:35]} 32. a5 {[%emt 0:00:51]} Re7 {[%emt 0:02:10] normal} 1/2-1/2

[Event "GER-ch Youth U14 2019"]
[Site "Willingen"]
[Date "2019.06.12"]
[Round "5.12"]
[White "Haack, Kevin"]
[Black "Matthaei, Jakob"]
[Result "1-0"]
[ECO "A18"]
[WhiteElo "2033"]
[BlackElo "1666"]
[Annotator "NA"]
[PlyCount "122"]
[EventDate "2019.06.07"]
[EventType "swiss"]
[EventRounds "9"]
[EventCountry "GER"]
[SourceTitle "playchess.com"]
[Source "ChessBase"]
[SourceQuality "1"]
[TimeControl "40/5400+30:1800+30"]

1. c4 {[%emt 0:00:00]} Nf6 {[%emt 0:00:00]} 2. Nc3 {[%emt 0:00:00]} e6 {[%emt 0:00:00]} 3. e4 {[%emt 0:00:00]} d5 {[%emt 0:00:00]} 4. cxd5 {[%emt 0:00:00]} exd5 {[%emt 0:00:00]} 5. e5 {[%emt 0:00:00]} Ne4 {[%emt 0:00:08]} 6. Nf3 {[%emt 0:00:00]} Nxc3 {[%emt 0:03:16]} 7. bxc3 {[%emt 0:00:21]} c5 {[%emt 0:01:00]} 8. d4 {[%emt 0:00:31]} Nc6 {[%emt 0:01:25]} 9. Bd3 {[%emt 0:02:34]} c4 {[%emt 0:02:57]} 10. Bc2 {[%emt 0:00:50]} Be7 {[%emt 0:00:58]} 11. a4 {[%emt 0:02:00]} Bg4 {[%emt 0:05:54]} 12. O-O {[%emt 0:01:50]} O-O {[%emt 0:03:03]} 13. h3 {[%emt 0:01:14]} Bh5 {[%emt 0:02:27]} 14. Re1 {[%emt 0:05:50]} Qd7 {[%emt 0:05:59]} 15. Qe2 {[%emt 0:02:13]} Nd8 {[%emt 0:03:40]} 16. e6 {[%emt 0:15:09]} Nxe6 {[%emt 0:08:43]} 17. g4 {[%emt 0:00:22]} Bg6 {[%emt 0:00:26]} 18. Ne5 {[%emt 0:00:28]} Qc8 {[%emt 0:01:10]} 19. Bxg6 {[%emt 0:08:40]} hxg6 {[%emt 0:00:18]} 20. Nxg6 {[%emt 0:00:14]} fxg6 {[%emt 0:00:08]} 21. Qxe6+ {[%emt 0:00:07]} Qxe6 {[%emt 0:00:05]} 22. Rxe6 {[%emt 0:00:04]} Kf7 {[%emt 0:01:45]} 23. Re5 {[%emt 0:00:42]} Rad8 {[%emt 0:00:44]} 24. Rb1 {[%emt 0:00:59]} Rd7 {[%emt 0:01:27]} 25. Rxe7+ {[%emt 0:05:18]} Rxe7 {[%emt 0:00:58]} 26. Ba3 {[%emt 0:00:06]} Rfe8 {[%emt 0:00:31]} 27. Bxe7 {[%emt 0:00:21]} Rxe7 {[%emt 0:00:01]} 28. Kg2 {[%emt 0:01:55]} g5 {[%emt 0:01:58]} 29. Rb5 {[%emt 0:03:10]} Ke6 {[%emt 0:02:47]} 30. Kg3 {[%emt 0:00:54]} Kd6 {[%emt 0:04:53]} 31. h4 {[%emt 0:03:40]} gxh4+ {[%emt 0:06:23]} 32. Kxh4 {[%emt 0:00:08]} b6 {[%emt 0:00:46]} 33. Rb2 {[%emt 0:00:16]} Re1 {[%emt 0:00:20]} 34. Rc2 {[%emt 0:09:11]} Ke6 {[%emt 0:13:31]} 35. Kg5 {[%emt 0:02:16]} Kf7 {[%emt 0:01:05]} 36. a5 {[%emt 0:01:42]} b5 {[%emt 0:02:44]} 37. a6 {[%emt 0:00:36]} Rb1 {[%emt 0:00:32]} 38. Kf5 {[%emt 0:01:40]} b4 {[%emt 0:04:11]} 39. cxb4 {[%emt 0:00:41]} Rxb4 {[%emt 0:00:18]} 40. Ke5 {[%emt 0:00:57]} Rb5 {[%emt 0:01:54]} 41. Kd6 {[%emt 0:30:21]} g5 {[%emt 0:36:26]} 42. Kc6 {[%emt 0:02:31]} Rb6+ {[%emt 0:03:44]} 43. Kxd5 {[%emt 0:00:07]} Rxa6 {[%emt 0:00:03]} 44. Rxc4 {[%emt 0:00:37]} Ra2 {[%emt 0:00:27]} 45. f3 {[%emt 0:00:33]} a5 {[%emt 0:06:08]} 46. Rc7+ {[%emt 0:01:35]} Kf6 {[%emt 0:00:26]} 47. Rc6+ {[%emt 0:00:13]} Kf7 {[%emt 0:00:16]} 48. Ke5 {[%emt 0:01:19]} Rf2 {[%emt 0:05:04]} 49. Rc3 {[%emt 0:00:26]} Kg6 {[%emt 0:00:00]} 50. Ra3 {[%emt 0:00:00]} Re2+ {[%emt 0:00:00]} 51. Kd5 {[%emt 0:00:00]} Kf6 {[%emt 0:00:00]} 52. Kd6 {[%emt 0:00:00]} Rd2 {[%emt 0:00:00]} 53. d5 {[%emt 0:00:00]} Rd1 {[%emt 0:00:00]} 54. Rxa5 {[%emt 0:00:00]} Rd3 {[%emt 0:00:00]} 55. Kd7 {[%emt 0:00:00]} Rxf3 {[%emt 0:00:00]} 56. d6 {[%emt 0:00:00]} Rg3 {[%emt 0:00:00]} 57. Rf5+ {[%emt 0:00:00]} Kg6 {[%emt 0:00:00]} 58. Ke6 {[%emt 0:00:00]} Rxg4 {[%emt 0:00:00]} 59. d7 {[%emt 0:00:00]} Rd4 {[%emt 0:00:00]} 60. Rd5 {[%emt 0:00:00]} Re4+ {[%emt 0:00:00] normal} 61. Kd6 {[%emt 0:00:00]} Re3 {normal} 1-0

[Event "GER-ch Youth U14 2019"]
[Site "Willingen"]
[Date "2019.06.12"]
[Round "5.13"]
[White "Roste, Hugo"]
[Black "Kosev, Momchil"]
[Result "1/2-1/2"]
[ECO "E16"]
[WhiteElo "1287"]
[BlackElo "1827"]
[Annotator "NA"]
[PlyCount "43"]
[EventDate "2019.06.07"]
[EventType "swiss"]
[EventRounds "9"]
[EventCountry "GER"]
[SourceTitle "playchess.com"]
[Source "ChessBase"]
[SourceQuality "1"]
[TimeControl "40/5400+30:1800+30"]

1. d4 {[%emt 0:00:00]} Nf6 {[%emt 0:00:00]} 2. c4 {[%emt 0:00:00]} e6 {[%emt 0:00:00]} 3. Nf3 {[%emt 0:00:00]} Bb4+ {[%emt 0:00:00]} 4. Bd2 {[%emt 0:00:02]} Qe7 {[%emt 0:00:07]} 5. e3 {[%emt 0:00:19]} a5 {[%emt 0:06:54]} 6. Be2 {[%emt 0:01:37]} Ne4 {[%emt 0:08:08]} 7. O-O {[%emt 0:03:36]} b6 {[%emt 0:01:52]} 8. a3 {[%emt 0:03:41]} Bxd2 {[%emt 0:00:07]} 9. Nbxd2 {[%emt 0:00:10]} Bb7 {[%emt 0:00:20]} 10. Qc2 {[%emt 0:01:58]} f5 {[%emt 0:01:05]} 11. h3 {[%emt 0:02:26]} O-O {[%emt 0:02:11]} 12. Rfc1 {[%emt 0:05:04]} d6 {[%emt 0:05:49]} 13. b4 {[%emt 0:10:26]} axb4 14. axb4 {[%emt 0:00:13]} Nd7 {[%emt 0:02:25]} 15. Nxe4 {[%emt 0:02:10]} Bxe4 {[%emt 0:03:28]} 16. Qc3 {[%emt 0:00:57]} Nf6 {[%emt 0:10:05]} 17. Rxa8 {[%emt 0:05:36]} Rxa8 {[%emt 0:01:54]} 18. Ra1 {[%emt 0:02:08]} Rxa1+ {[%emt 0:09:32]} 19. Qxa1 {[%emt 0:00:10]} h6 {[%emt 0:03:13]} 20. Nd2 {[%emt 0:02:00]} Bc6 {[%emt 0:07:44]} 21. b5 {[%emt 0:02:44]} Be8 {[%emt 0:04:15] normal} 22. Qa8 {[%emt 0:07:18] normal} 1/2-1/2

[Event "GER-ch Youth U14 2019"]
[Site "Willingen"]
[Date "2019.06.12"]
[Round "5.14"]
[White "Schubert, Nikita"]
[Black "Sinnhoefer, Joshua"]
[Result "1-0"]
[ECO "D02"]
[WhiteElo "1806"]
[BlackElo "1466"]
[Annotator "NA"]
[PlyCount "77"]
[EventDate "2019.06.07"]
[EventType "swiss"]
[EventRounds "9"]
[EventCountry "GER"]
[SourceTitle "playchess.com"]
[Source "ChessBase"]
[SourceQuality "1"]
[TimeControl "40/5400+30:1800+30"]

1. d4 {[%emt 0:00:00]} d5 {[%emt 0:00:00]} 2. Nf3 {[%emt 0:00:00]} Nf6 {[%emt 0:00:00]} 3. g3 {[%emt 0:00:00]} c5 {[%emt 0:00:01]} 4. Bg2 {[%emt 0:02:04]} Nc6 {[%emt 0:00:25]} 5. O-O {[%emt 0:00:33]} cxd4 {[%emt 0:01:19]} 6. Nxd4 {[%emt 0:00:11]} e5 {[%emt 0:00:04]} 7. Nxc6 {[%emt 0:01:06]} bxc6 {[%emt 0:01:43]} 8. c4 {[%emt 0:00:47]} Be6 {[%emt 0:01:13]} 9. Bg5 {[%emt 0:09:13]} Qd7 {[%emt 0:08:07]} 10. Nc3 {[%emt 0:15:26]} Rd8 {[%emt 0:04:04]} 11. Qa4 {[%emt 0:02:37]} Be7 {[%emt 0:07:00]} 12. Rfd1 {[%emt 0:00:57]} O-O {[%emt 0:02:40]} 13. Rd2 {[%emt 0:09:37]} Qb7 {[%emt 0:05:31]} 14. Rad1 {[%emt 0:02:17]} e4 {[%emt 0:03:58]} 15. Bxf6 {[%emt 0:09:42]} Bxf6 {[%emt 0:01:50]} 16. Qa5 {[%emt 0:00:20]} Bxc3 {[%emt 0:01:20]} 17. bxc3 {[%emt 0:10:07]} Rb8 {[%emt 0:01:39]} 18. Qa4 {[%emt 0:11:47]} Qb6 {[%emt 0:01:31]} 19. e3 {[%emt 0:06:03]} Rfc8 {[%emt 0:00:35]} 20. Rc1 {[%emt 0:02:42]} h6 {[%emt 0:01:53]} 21. Rdc2 {[%emt 0:00:33]} Rb7 {[%emt 0:01:38]} 22. Bf1 {[%emt 0:00:41]} a5 {[%emt 0:01:39]} 23. cxd5 {[%emt 0:02:59]} cxd5 {[%emt 0:00:21]} 24. Kg2 {[%emt 0:07:50]} Qc5 {[%emt 0:02:23]} 25. Ba6 {[%emt 0:02:17]} Bd7 {[%emt 0:02:20]} 26. Qd4 {[%emt 0:00:22]} Qxd4 {[%emt 0:00:19]} 27. exd4 {[%emt 0:00:12]} Rbc7 {[%emt 0:00:13]} 28. Bxc8 {[%emt 0:00:06]} Rxc8 {[%emt 0:00:38]} 29. c4 {[%emt 0:00:36]} Kf8 {[%emt 0:00:54]} 30. cxd5 {[%emt 0:00:24]} Rxc2 {[%emt 0:00:43]} 31. Rxc2 {[%emt 0:00:00]} Ke7 {[%emt 0:00:08]} 32. f3 {[%emt 0:02:08]} exf3+ {[%emt 0:00:52]} 33. Kxf3 Kd6 34. Ke3 {[%emt 0:00:39]} a4 {[%emt 0:00:32]} 35. Rc5 {[%emt 0:01:09]} g5 {[%emt 0:00:10]} 36. Ra5 {[%emt 0:00:58]} h5 37. h4 {[%emt 0:00:01]} gxh4 {[%emt 0:01:03]} 38. gxh4 f5 {[%emt 0:00:19]} 39. Kf4 {[%emt 0:00:45] normal} 1-0

[Event "GER-ch Youth U14 2019"]
[Site "Willingen"]
[Date "2019.06.12"]
[Round "5.15"]
[White "Schauties, Nico Antonio"]
[Black "Haufe, Laurin"]
[Result "1/2-1/2"]
[ECO "A39"]
[WhiteElo "1866"]
[BlackElo "1995"]
[Annotator "NA"]
[PlyCount "38"]
[EventDate "2019.06.07"]
[EventType "swiss"]
[EventRounds "9"]
[EventCountry "GER"]
[SourceTitle "playchess.com"]
[Source "ChessBase"]
[SourceQuality "1"]
[TimeControl "40/5400+30:1800+30"]

1. c4 {[%emt 0:00:00]} Nf6 {[%emt 0:00:00]} 2. Nc3 {[%emt 0:00:00]} g6 {[%emt 0:00:00]} 3. g3 {[%emt 0:00:00]} Bg7 {[%emt 0:00:09]} 4. Bg2 {[%emt 0:00:06]} c5 {[%emt 0:00:15]} 5. Nf3 {[%emt 0:00:12]} O-O {[%emt 0:00:11]} 6. O-O {[%emt 0:00:38]} Nc6 {[%emt 0:00:16]} 7. d4 {[%emt 0:00:41]} cxd4 {[%emt 0:00:05]} 8. Nxd4 {[%emt 0:00:06]} d6 {[%emt 0:00:23]} 9. Nxc6 {[%emt 0:08:20]} bxc6 {[%emt 0:00:04]} 10. Bxc6 {[%emt 0:00:11]} Rb8 {[%emt 0:00:02]} 11. Bg2 {[%emt 0:06:13]} Qa5 {[%emt 0:00:10]} 12. Qc2 {[%emt 0:03:58]} Qh5 {[%emt 0:01:20]} 13. c5 {[%emt 0:14:43]} dxc5 {[%emt 0:08:54]} 14. Rd1 {[%emt 0:06:13]} Bf5 {[%emt 0:12:04]} 15. Qa4 {[%emt 0:07:19]} Bh3 {[%emt 0:14:17]} 16. Bh1 {[%emt 0:01:44]} Be6 {[%emt 0:21:19]} 17. Bg2 {[%emt 0:05:38]} Rb4 {[%emt 0:06:39]} 18. Qxa7 {[%emt 0:01:50]} Ng4 {[%emt 0:03:47]} 19. h3 {[%emt 0:01:01] normal} Nf6 {[%emt 0:04:25] normal} 1/2-1/2

[Event "GER-ch Youth U14 2019"]
[Site "Willingen"]
[Date "2019.06.12"]
[Round "5.16"]
[White "Bress, Aaron"]
[Black "May, Ben-Iven"]
[Result "0-1"]
[ECO "B98"]
[WhiteElo "1849"]
[BlackElo "1692"]
[Annotator "NA"]
[PlyCount "58"]
[EventDate "2019.06.07"]
[EventType "swiss"]
[EventRounds "9"]
[EventCountry "GER"]
[SourceTitle "playchess.com"]
[Source "ChessBase"]
[SourceQuality "1"]
[TimeControl "40/5400+30:1800+30"]

1. e4 {[%emt 0:00:00]} c5 {[%emt 0:00:00]} 2. Nf3 {[%emt 0:00:00]} d6 {[%emt 0:00:00]} 3. d4 {[%emt 0:00:06]} cxd4 {[%emt 0:00:00]} 4. Nxd4 {[%emt 0:00:07]} Nf6 {[%emt 0:00:00]} 5. Nc3 {[%emt 0:00:42]} a6 {[%emt 0:00:00]} 6. Bg5 {[%emt 0:08:36]} e6 {[%emt 0:00:37]} 7. f4 {[%emt 0:01:53]} Be7 {[%emt 0:00:06]} 8. Qf3 {[%emt 0:03:02]} Nbd7 {[%emt 0:00:20]} 9. O-O-O {[%emt 0:02:23]} h6 {[%emt 0:01:34]} 10. Bxf6 {[%emt 0:08:09]} Bxf6 {[%emt 0:00:07]} 11. g4 {[%emt 0:11:17]} g5 {[%emt 0:00:22]} 12. f5 {[%emt 0:11:43]} Ne5 {[%emt 0:00:23]} 13. Qe2 {[%emt 0:04:33]} Qc7 {[%emt 0:03:53]} 14. Bg2 {[%emt 0:01:27]} Bd7 {[%emt 0:01:32]} 15. Rhf1 {[%emt 0:03:33]} O-O {[%emt 0:00:13]} 16. Kb1 {[%emt 0:12:22]} Rac8 {[%emt 0:01:52]} 17. h3 {[%emt 0:03:44]} b5 {[%emt 0:01:59]} 18. Qd2 {[%emt 0:06:43]} Nc4 {[%emt 0:01:42]} 19. Qc1 {[%emt 0:00:18]} Qb6 {[%emt 0:12:08]} 20. Nce2 {[%emt 0:05:51]} e5 {[%emt 0:03:58]} 21. Nf3 {[%emt 0:00:55]} Ne3 {[%emt 0:00:02]} 22. Rxd6 {[%emt 0:00:44]} Qxd6 {[%emt 0:00:33]} 23. Qxe3 {[%emt 0:00:08]} Qc5 {[%emt 0:01:18]} 24. Qc1 {[%emt 0:01:03]} Bc6 {[%emt 0:01:18]} 25. Ng3 {[%emt 0:00:08]} Qe7 {[%emt 0:15:55]} 26. Rh1 {[%emt 0:04:01]} Rfd8 {[%emt 0:03:05]} 27. h4 {[%emt 0:05:39]} Rd6 {[%emt 0:07:06]} 28. Bf1 {[%emt 0:02:31]} gxh4 {[%emt 0:03:39]} 29. Nh5 {[%emt 0:01:07]} Bxe4 {[%emt 0:00:15] normal} 0-1

[Event "GER-ch Youth U14 2019"]
[Site "Willingen"]
[Date "2019.06.12"]
[Round "5.17"]
[White "Rockmann, Enno"]
[Black "Weidenhoefer, Max"]
[Result "0-1"]
[ECO "B13"]
[WhiteElo "1527"]
[BlackElo "1787"]
[Annotator "NA"]
[PlyCount "62"]
[EventDate "2019.06.07"]
[EventType "swiss"]
[EventRounds "9"]
[EventCountry "GER"]
[SourceTitle "playchess.com"]
[Source "ChessBase"]
[SourceQuality "1"]
[TimeControl "40/5400+30:1800+30"]

1. e4 {[%emt 0:00:00]} c6 {[%emt 0:00:00]} 2. d4 {[%emt 0:00:00]} d5 {[%emt 0:00:00]} 3. exd5 {[%emt 0:00:00]} cxd5 {[%emt 0:00:00]} 4. c4 Nf6 {[%emt 0:00:05]} 5. Nc3 {[%emt 0:00:15]} Nc6 {[%emt 0:00:56]} 6. cxd5 {[%emt 0:00:27]} Nxd5 {[%emt 0:00:10]} 7. Bc4 {[%emt 0:00:04]} Nb6 {[%emt 0:18:30]} 8. Bb5 {[%emt 0:00:03]} Bd7 {[%emt 0:00:23]} 9. Bf4 {[%emt 0:02:04]} a6 {[%emt 0:01:46]} 10. Be2 {[%emt 0:04:47]} e6 {[%emt 0:05:40]} 11. Nf3 {[%emt 0:00:31]} Bb4 {[%emt 0:02:33]} 12. O-O {[%emt 0:00:21]} O-O {[%emt 0:01:35]} 13. a3 {[%emt 0:00:03]} Bxc3 {[%emt 0:01:54]} 14. bxc3 {[%emt 0:00:04]} Nd5 {[%emt 0:00:07]} 15. Qd2 {[%emt 0:02:04]} Nxf4 {[%emt 0:01:42]} 16. Qxf4 {[%emt 0:00:06]} Ne7 {[%emt 0:00:30]} 17. Bd3 {[%emt 0:02:39]} h6 {[%emt 0:05:43]} 18. Qe4 {[%emt 0:00:47]} g6 {[%emt 0:13:07]} 19. Qxb7 {[%emt 0:00:45]} Bc6 {[%emt 0:00:15]} 20. Qb2 {[%emt 0:00:54]} Bxf3 {[%emt 0:03:55]} 21. gxf3 {[%emt 0:00:06]} Nd5 {[%emt 0:01:38]} 22. Qd2 {[%emt 0:01:26]} Qh4 {[%emt 0:10:29]} 23. Be4 {[%emt 0:03:07]} Rad8 {[%emt 0:03:42]} 24. c4 {[%emt 0:05:06]} Nf4 {[%emt 0:00:35]} 25. Kh1 {[%emt 0:00:34]} Nh3 {[%emt 0:00:35]} 26. Rad1 {[%emt 0:08:52]} Kh7 {[%emt 0:03:05]} 27. Qb2 {[%emt 0:12:14]} Ng5 {[%emt 0:03:01]} 28. Rfe1 {[%emt 0:01:58]} f5 {[%emt 0:02:17]} 29. Bc6 {[%emt 0:04:39]} Rb8 {[%emt 0:01:52]} 30. Qe2 {[%emt 0:01:25]} Rb6 {[%emt 0:00:30]} 31. d5 {[%emt 0:01:14]} Rb2 {[%emt 0:08:33] normal} 0-1

[Event "GER-ch Youth U14 2019"]
[Site "Willingen"]
[Date "2019.06.12"]
[Round "5.18"]
[White "Schulemann, Gero"]
[Black "Straub, Benno"]
[Result "1-0"]
[ECO "C52"]
[WhiteElo "1862"]
[BlackElo "1490"]
[Annotator "NA"]
[PlyCount "33"]
[EventDate "2019.06.07"]
[EventType "swiss"]
[EventRounds "9"]
[EventCountry "GER"]
[SourceTitle "playchess.com"]
[Source "ChessBase"]
[SourceQuality "1"]
[TimeControl "40/5400+30:1800+30"]

1. e4 {[%emt 0:00:00]} e5 {[%emt 0:00:00]} 2. Nf3 {[%emt 0:00:00]} Nc6 {[%emt 0:00:00]} 3. Bc4 {[%emt 0:00:00]} Bc5 {[%emt 0:00:00]} 4. b4 {[%emt 0:00:00]} Bxb4 {[%emt 0:00:00]} 5. c3 {[%emt 0:00:00]} Ba5 {[%emt 0:00:00]} 6. d4 {[%emt 0:00:00]} d6 {[%emt 0:00:11]} 7. Qb3 {[%emt 0:01:15]} Qe7 {[%emt 0:00:05]} 8. O-O {[%emt 0:02:10]} Bb6 {[%emt 0:00:12]} 9. Bb5 {[%emt 0:01:57]} a6 {[%emt 0:00:24]} 10. Bxc6+ {[%emt 0:06:02]} bxc6 {[%emt 0:00:07]} 11. dxe5 {[%emt 0:00:34]} dxe5 {[%emt 0:00:08]} 12. Ba3 {[%emt 0:00:34]} Be6 {[%emt 0:01:09]} 13. Qa4 {[%emt 0:02:13]} Qd8 {[%emt 0:01:06]} 14. Rd1 {[%emt 0:03:22]} Bd7 {[%emt 0:02:37] normal} 15. Nxe5 {[%emt 0:01:58]} Qf6 {[%emt 0:00:11]} 16. Nxd7 {[%emt 0:01:55] normal} Qxf2+ {[%emt 0:00:12]} 17. Kh1 {[%emt 0:00:03] normal} 1-0

[Event "GER-ch Youth U14 2019"]
[Site "Willingen"]
[Date "2019.06.12"]
[Round "5.19"]
[White "Seng, Alexander"]
[Black "Bornholdt, Joa Max"]
[Result "1-0"]
[ECO "A57"]
[WhiteElo "1505"]
[BlackElo "1754"]
[Annotator "NA"]
[PlyCount "67"]
[EventDate "2019.06.07"]
[EventType "swiss"]
[EventRounds "9"]
[EventCountry "GER"]
[SourceTitle "playchess.com"]
[Source "ChessBase"]
[SourceQuality "1"]
[TimeControl "40/5400+30:1800+30"]

1. d4 {[%emt 0:00:00]} Nf6 {[%emt 0:00:00]} 2. c4 {[%emt 0:01:28]} c5 {[%emt 0:00:00]} 3. d5 {[%emt 0:00:36]} b5 {[%emt 0:00:00]} 4. Qc2 {[%emt 0:04:28]} g6 {[%emt 0:00:16]} 5. e4 {[%emt 0:01:24]} d6 {[%emt 0:00:13]} 6. cxb5 {[%emt 0:11:31]} a6 {[%emt 0:01:33]} 7. Nc3 {[%emt 0:01:11]} Bg7 {[%emt 0:00:07]} 8. Nf3 {[%emt 0:04:53]} O-O {[%emt 0:00:48]} 9. Be2 {[%emt 0:01:45]} axb5 {[%emt 0:00:54]} 10. Bxb5 Ba6 {[%emt 0:00:29]} 11. O-O {[%emt 0:07:00]} Qc7 {[%emt 0:04:44]} 12. Bxa6 {[%emt 0:10:04]} Nxa6 {[%emt 0:00:06]} 13. a3 {[%emt 0:00:52]} Rfb8 {[%emt 0:04:58]} 14. Rb1 {[%emt 0:05:15]} Nd7 {[%emt 0:05:41]} 15. Bd2 {[%emt 0:02:27]} c4 {[%emt 0:06:12]} 16. Na2 {[%emt 0:04:11]} Nb6 {[%emt 0:06:27]} 17. Bc3 {[%emt 0:03:14]} e5 {[%emt 0:11:09]} 18. Nb4 {[%emt 0:06:10]} Nxb4 {[%emt 0:07:14]} 19. Bxb4 {[%emt 0:00:44]} Qd7 {[%emt 0:00:51]} 20. Nd2 {[%emt 0:01:27]} Rc8 {[%emt 0:02:10]} 21. Rfc1 {[%emt 0:07:22]} f5 {[%emt 0:07:07]} 22. f3 {[%emt 0:04:08]} Bh6 {[%emt 0:01:32]} 23. Qd1 {[%emt 0:01:16]} Be3+ {[%emt 0:01:34]} 24. Kh1 {[%emt 0:01:02]} f4 {[%emt 0:07:49]} 25. Qe2 {[%emt 0:00:33]} Bxd2 {[%emt 0:02:14]} 26. Qxd2 {[%emt 0:00:42]} Kf7 {[%emt 0:03:29]} 27. Rc2 {[%emt 0:01:52]} Ke7 {[%emt 0:01:25]} 28. Rbc1 {[%emt 0:00:16]} Qa4 {[%emt 0:01:15]} 29. Qf2 {[%emt 0:00:47]} Qa7 {[%emt 0:05:50]} 30. Qh4+ {[%emt 0:00:59]} Ke8 {[%emt 0:00:00]} 31. Qf6 {[%emt 0:03:22]} Qf7 {[%emt 0:02:20]} 32. Qxd6 {[%emt 0:00:37]} Nd7 {[%emt 0:00:25]} 33. Rxc4 {[%emt 0:00:48]} Rxc4 {[%emt 0:00:49]} 34. Rxc4 {[%emt 0:02:08] normal} 1-0

[Event "GER-ch Youth U14 2019"]
[Site "Willingen"]
[Date "2019.06.12"]
[Round "5.20"]
[White "Gutewort, Paul Emil"]
[Black "Wang, Xinyuan"]
[Result "0-1"]
[ECO "A36"]
[WhiteElo "1708"]
[BlackElo "2060"]
[Annotator "NA"]
[PlyCount "64"]
[EventDate "2019.06.07"]
[EventType "swiss"]
[EventRounds "9"]
[EventCountry "GER"]
[SourceTitle "playchess.com"]
[Source "ChessBase"]
[SourceQuality "1"]
[TimeControl "40/5400+30:1800+30"]

1. c4 {[%emt 0:00:00]} c5 {[%emt 0:00:00]} 2. g3 {[%emt 0:00:00]} Nc6 {[%emt 0:00:00]} 3. Bg2 {[%emt 0:00:00]} g6 {[%emt 0:00:00]} 4. Nc3 {[%emt 0:00:00]} Bg7 {[%emt 0:00:07]} 5. a3 {[%emt 0:00:00]} e6 {[%emt 0:01:23]} 6. Rb1 {[%emt 0:00:04]} Nge7 {[%emt 0:00:56]} 7. e4 {[%emt 0:00:30]} d5 {[%emt 0:10:27]} 8. d3 {[%emt 0:12:30]} dxc4 {[%emt 0:03:41]} 9. dxc4 {[%emt 0:00:06]} O-O {[%emt 0:00:18]} 10. Nge2 {[%emt 0:00:36]} Qxd1+ {[%emt 0:00:22]} 11. Nxd1 {[%emt 0:00:09]} Ne5 {[%emt 0:00:13]} 12. Ne3 {[%emt 0:00:14]} Nd3+ {[%emt 0:07:54]} 13. Kf1 {[%emt 0:00:40]} Nc6 {[%emt 0:03:58]} 14. f4 {[%emt 0:01:39]} Nd4 {[%emt 0:07:38]} 15. Nxd4 {[%emt 0:02:29]} Nxc1 {[%emt 0:01:18]} 16. Nf3 {[%emt 0:04:57]} Nb3 {[%emt 0:01:07]} 17. Ke2 {[%emt 0:01:11]} Bd7 {[%emt 0:00:33]} 18. Rhd1 {[%emt 0:00:35]} Ba4 {[%emt 0:00:30]} 19. Rd3 {[%emt 0:01:23]} Rfd8 {[%emt 0:08:38]} 20. Rxd8+ {[%emt 0:01:05]} Rxd8 {[%emt 0:00:08]} 21. Kf2 {[%emt 0:00:41]} Nd2 {[%emt 0:02:04]} 22. Nxd2 {[%emt 0:04:08]} Rxd2+ {[%emt 0:00:06]} 23. Ke1 {[%emt 0:00:18]} Rxb2 {[%emt 0:00:31]} 24. Rxb2 {[%emt 0:00:22]} Bxb2 {[%emt 0:00:09]} 25. Nd1 {[%emt 0:00:05]} Bxa3 {[%emt 0:00:34]} 26. Nc3 {[%emt 0:00:10]} Bb3 {[%emt 0:01:36]} 27. Bf1 {[%emt 0:00:51]} Bb4 {[%emt 0:00:09]} 28. Kd2 {[%emt 0:00:07]} a5 {[%emt 0:00:30]} 29. Kd3 {[%emt 0:19:23]} a4 {[%emt 0:11:46]} 30. Nb1 {[%emt 0:09:56]} a3 {[%emt 0:01:29]} 31. Nxa3 {[%emt 0:00:07]} Bxa3 {[%emt 0:00:05]} 32. e5 {[%emt 0:00:13]} Ba4 {[%emt 0:01:38] normal} 0-1